fUST/lending_fUST_20250308
["ID","MTS","AMOUNT","RATE_DAILY","PERIOD"]
[355624816,1741404640402,-660.77233895,0.00049531,120]
[355624818,1741404640411,-212.53372124,0.00049531,120]
[355624820,1741404640421,-227.13839955,0.00049531,120]
[355624822,1741404640431,-151.38940062,0.00049531,2]
[355624823,1741404640441,-3489.44713978,0.00049531,2]
[355624826,1741404640452,-312.01766011,0.00049531,120]
[355624828,1741404640462,-200.57096286,0.00049531,120]
[355624829,1741404640471,-2000.0,0.00049531,60]
[355624832,1741404640482,-9353.96601874,0.00049531,2]
[355624834,1741404640492,-940.36451581,0.00049531,120]
[355624836,1741404640503,-198.02447066,0.00049531,7]
[355624838,1741404640516,-2121.78486254,0.00049531,120]
[355624839,1741404640526,-505.60979245,0.00049531,2]
[355624842,1741404640535,-678.0,0.00049531,120]
[355624844,1741404640546,-253.27114878,0.00049531,90]
[355624846,1741404640556,-4999.43077448,0.00049531,7]
[355624848,1741404640566,-160.0,0.00049531,7]
[355624850,1741404640576,-1241.55548535,0.00049531,64]
[355624852,1741404640589,-151.0,0.00049531,120]
[355624854,1741404640599,-151.0,0.00049531,120]
[355624855,1741404640610,-268.344844,0.00049531,120]
[355624857,1741404640620,-158.093975,0.00049542,120]
[355624859,1741404640630,-156.964846,0.00049542,120]
[355624861,1741404640639,-151.0,0.00049542,90]
[355624862,1741404640648,-151.0,0.00049542,90]
[355624863,1741404640657,-500.0,0.00049542,120]
[355624864,1741404640668,-500.0,0.00049542,120]
[355624865,1741404640677,-500.0,0.00049542,120]
[355624866,1741404640687,-500.0,0.00049542,120]
[355624867,1741404640696,-500.0,0.00049542,120]
[355624869,1741404640706,-500.0,0.00049542,120]
[355624870,1741404640715,-500.0,0.00049542,120]
[355624871,1741404640724,-500.0,0.00049542,120]
[355624872,1741404640734,-500.0,0.00049542,120]
[355624873,1741404640743,-500.0,0.00049542,120]
[355624874,1741404640753,-500.0,0.00049542,120]
[355624875,1741404640763,-500.0,0.00049542,120]
[355624876,1741404640772,-500.0,0.00049542,120]
[355624877,1741404640782,-500.0,0.00049542,120]
[355624878,1741404640792,-500.0,0.00049542,120]
[355624879,1741404640802,-500.0,0.00049542,120]
[355624880,1741404640812,-500.0,0.00049542,120]
[355624881,1741404640822,-500.0,0.00049542,120]
[355624882,1741404640831,-500.0,0.00049542,120]
[355624883,1741404640841,-500.0,0.00049542,120]
[355624884,1741404640851,-500.0,0.00049542,120]
[355624885,1741404640860,-500.0,0.00049542,120]
[355624886,1741404640870,-500.0,0.00049542,120]
[355624887,1741404640879,-500.0,0.00049542,120]
[355624888,1741404640889,-500.0,0.00049542,120]
[355624889,1741404640898,-500.0,0.00049542,120]
[355624890,1741404640908,-500.0,0.00049542,120]
[355624891,1741404640918,-500.0,0.00049542,120]
[355624892,1741404640928,-500.0,0.00049542,120]
[355624893,1741404640939,-500.0,0.00049542,120]
[355624894,1741404640949,-500.0,0.00049542,120]
[355624895,1741404640959,-500.0,0.00049542,120]
[355624896,1741404640971,-500.0,0.00049542,120]
[355624897,1741404640982,-500.0,0.00049542,120]
[355624898,1741404640992,-500.0,0.00049542,120]
[355624899,1741404641002,-500.0,0.00049542,120]
[355624900,1741404641011,-500.0,0.00049542,120]
[355624901,1741404641020,-500.0,0.00049542,120]
[355624902,1741404641030,-500.0,0.00049542,120]
[355624903,1741404641040,-500.0,0.00049542,120]
[355624904,1741404641049,-413.51505713,0.00049542,120]
[355624905,1741404641059,-502.63650637,0.00049573,10]
[355624906,1741404641069,-500.0,0.00049573,10]
[355624907,1741404641079,-501.21363941,0.00049573,10]
[355624908,1741404641088,-150.0,0.00049573,10]
[355624909,1741404641097,-500.0,0.00049573,10]
[355624910,1741404641107,-1640.1,0.000499,30]
[355624911,1741404641117,-1095.66,0.000499,30]
[355624912,1741404641126,-2000.0,0.00049922,4]
[355624913,1741404641135,-150.0,0.00049973,10]
[355624914,1741404641145,-495.60521991,0.00049999,120]
[355624915,1741404641154,-362.5816518,0.00049999,31]
[355624916,1741404641164,-211.79919856,0.00049999,120]
[355624917,1741404641174,-356.49323618,0.00049999,31]
[355624918,1741404641184,-445.97594415,0.00049999,120]
[355624919,1741404641194,-292.0273203,0.00049999,120]
[355624920,1741404641204,-500.0,0.00049999,2]
[355624921,1741404641213,-500.0,0.00049999,2]
[355624922,1741404641223,-235.2,0.00049999,2]
[355624923,1741404641232,-500.0,0.00049999,2]
[355624924,1741404641242,-500.0,0.00049999,2]
[355624925,1741404641252,-237.38555011,0.00049999,2]
[355624926,1741404641262,-500.0,0.00049999,2]
[355624927,1741404641272,-500.0,0.00049999,2]
[355624928,1741404641282,-500.0,0.00049999,2]
[355624929,1741404641291,-300.0,0.00049999,2]
[355624930,1741404641301,-500.0,0.00049999,2]
[355624931,1741404641310,-215.72993789,0.0005,20]
[355624932,1741404641320,-525.22190319,0.0005,10]
[355624933,1741404641329,-534.77735342,0.0005,120]
[355624934,1741404641338,-313.80886866,0.0005,15]
[355624935,1741404641348,-300.0,0.0005,120]
[355624936,1741404641357,-90919.48844326,0.0005,5]
[355624937,1741404641370,-744.0,0.0005,120]
[355624938,1741404641379,-1002.64383215,0.0005,120]
[355624939,1741404641388,-1327881.01649222,0.0005,120]
[355624945,1741404643231,-349.13,0.00049201,30]
[355624946,1741404643241,-8258.72317864,0.0005,120]
[355624981,1741404646063,-706.58343731,0.00049431,2]
[355624982,1741404646073,-1712.16,0.00049521,10]
[355624983,1741404646083,-2180.69076269,0.0005,120]
[355624984,1741404665302,186.0,0.00045,120]
[355624988,1741404941084,-152.85934486,0.00045,120]
[355624989,1741404949159,-28.14065514,0.00045,120]
[355624990,1741404949181,-121.85934486,0.00048,90]
[355624991,1741404949735,-54.14065514,0.00048,90]
[355624992,1741404949759,-95.85934486,0.00048907,120]
[355624993,1741405087297,160.0,0.0002,3]
[355624995,1741405549116,-161.342729,0.0003589,2]
[355624996,1741405549138,-161.342729,0.0004263,2]
[355624997,1741405549159,-150.0,0.000479,2]
[355624998,1741405549179,-193.03695665,0.000488,120]
[355624999,1741405549201,-603.59815216,0.00048841,120]
[355625000,1741405549222,-704.98797745,0.00048875,2]
[355625001,1741405596080,-206.90415627,0.00048875,2]
[355625002,1741405633083,-1904.38148707,0.00048854,2]
[355625003,1741405642098,-695.52081266,0.00048854,2]
[355625004,1741405646081,-375.56698918,0.00048854,2]
[355625008,1741405792128,243.1449224,0.0004256,2]
[355625010,1741405828699,150.0,0.00046775,2]
[355625062,1741405832483,-12182.77533416,0.0004879,2]
[355625068,1741405832541,-379.75150905,0.0004879,2]
[355625069,1741405832552,-458.72829956,0.0004879,2]
[355625198,1741405838264,-2534.4188542,0.0004879,2]
[355625199,1741405838274,-104.14065514,0.00048907,120]
[355625200,1741405838283,-203.77711286,0.00048988,2]
[355625202,1741405838294,-1307.5755449,0.00048999,4]
[355625203,1741405838303,-479.95142989,0.00049,30]
[355625204,1741405838312,-479.95142989,0.00049,30]
[355625205,1741405838322,-817.53814319,0.00049,30]
[355625206,1741405838332,-817.53814319,0.00049,30]
[355625207,1741405838342,-270.4612565,0.00049,120]
[355625208,1741405838352,-55555.0,0.0004901,120]
[355625209,1741405838362,-386.86,0.0004902,30]
[355625210,1741405838371,-322.38,0.0004902,30]
[355625211,1741405838381,-268.65,0.0004902,30]
[355625212,1741405838390,-223.88,0.0004902,30]
[355625213,1741405838400,-186.57,0.0004902,30]
[355625214,1741405838410,-155.47,0.0004902,30]
[355625215,1741405838419,-777.38,0.0004902,30]
[355625216,1741405838429,-2085.1,0.0004902,10]
[355625217,1741405838438,-1737.58,0.0004902,10]
[355625218,1741405838449,-500.0,0.00049029,2]
[355625219,1741405838458,-500.0,0.00049029,120]
[355625220,1741405838467,-500.0,0.00049029,2]
[355625221,1741405838478,-500.0,0.00049029,120]
[355625222,1741405838487,-500.0,0.00049029,120]
[355625223,1741405838497,-500.0,0.00049029,2]
[355625224,1741405838507,-500.0,0.00049029,2]
[355625225,1741405838516,-353.50119113,0.00049029,120]
[355625226,1741405838526,-500.0,0.00049029,120]
[355625227,1741405838535,-500.0,0.00049029,120]
[355625228,1741405838546,-500.0,0.00049029,2]
[355625229,1741405838555,-500.0,0.00049029,2]
[355625230,1741405838565,-500.0,0.00049029,2]
[355625231,1741405838576,-500.0,0.00049029,120]
[355625232,1741405838585,-500.0,0.00049029,2]
[355625233,1741405838594,-500.0,0.00049029,2]
[355625234,1741405838604,-196.28,0.00049031,30]
[355625235,1741405838613,-39495.2527951,0.00049031,4]
[355625236,1741405838623,-2000.0,0.00049041,120]
[355625237,1741405838632,-2000.0,0.00049041,120]
[355625238,1741405838642,-2000.0,0.00049041,120]
[355625239,1741405838651,-2000.0,0.00049041,120]
[355625240,1741405838662,-2000.0,0.00049041,120]
[355625241,1741405838671,-2000.0,0.00049041,120]
[355625242,1741405838681,-2000.0,0.00049041,120]
[355625243,1741405838690,-2000.0,0.00049041,120]
[355625244,1741405838700,-2000.0,0.00049041,120]
[355625245,1741405838710,-1936.7676885,0.00049041,120]
[355625246,1741405838720,-39495.2527951,0.00049057,4]
[355625247,1741405838729,-616.3266126,0.00049073,2]
[355625248,1741405838739,-500.0,0.00049073,10]
[355625249,1741405838749,-500.0,0.00049073,10]
[355625250,1741405838758,-203.77711286,0.00049073,2]
[355625251,1741405838767,-151.0,0.00049081,2]
[355625252,1741405838776,-152.78281551,0.00049087,31]
[355625253,1741405838786,-155.39213649,0.00049087,31]
[355625254,1741405838796,-78990.5055903,0.00049088,4]
[355625255,1741405838805,-39495.2527951,0.00049091,4]
[355625256,1741405838815,-137465.525938,0.00049098,30]
[355625257,1741405838825,-503.78956182,0.00049099,120]
[355625258,1741405838835,-78990.5055903,0.000491,4]
[355625259,1741405838844,-222000.0,0.0004911,2]
[355625260,1741405838854,-500.0,0.00049173,10]
[355625261,1741405838863,-501.46404722,0.00049173,10]
[355625262,1741405838873,-441.97090026,0.00049173,10]
[355625263,1741405838883,-508.15869348,0.00049173,10]
[355625264,1741405838897,-416.66666667,0.00049173,10]
[355625265,1741405838907,-500.0,0.00049173,10]
[355625266,1741405838916,-500.0,0.00049173,2]
[355625267,1741405838926,-1859.44,0.000492,30]
[355625268,1741405838937,-1439.74,0.000492,30]
[355625269,1741405838947,-150.0,0.0004921,30]
[355625270,1741405838957,-160.0,0.00049303,2]
[355625271,1741405838967,-1050.85,0.00049315,120]
[355625272,1741405838978,-500.0,0.00049315,120]
[355625273,1741405838988,-500.0,0.00049315,120]
[355625274,1741405838997,-500.0,0.00049315,120]
[355625275,1741405839006,-500.0,0.00049315,120]
[355625276,1741405839016,-500.0,0.00049315,120]
[355625277,1741405839026,-500.0,0.00049315,120]
[355625278,1741405839035,-500.0,0.00049315,120]
[355625279,1741405839045,-500.0,0.00049315,120]
[355625280,1741405839054,-500.0,0.00049315,120]
[355625281,1741405839064,-500.0,0.00049315,120]
[355625282,1741405839074,-500.0,0.00049315,120]
[355625283,1741405839083,-500.0,0.00049315,120]
[355625284,1741405839094,-500.0,0.00049315,120]
[355625285,1741405839103,-413.51505713,0.00049315,120]
[355625286,1741405839217,-161.342729,0.0004937,2]
[355625287,1741405839226,-10000.0,0.000494,120]
[355625288,1741405839235,-500.0,0.0004946,30]
[355625289,1741405839246,-742.0971578,0.00049477,120]
[355625290,1741405839256,-10000.0,0.000495,120]
[355625291,1741405839265,-1089.0,0.0004953,30]
[355625292,1741405839275,-68298.8825547,0.0004953,30]
[355625293,1741405839286,-4855.61571606,0.0004953,35]
[355625294,1741405839296,-150.0,0.0004953,2]
[355625295,1741405839306,-502.63650637,0.00049573,10]
[355625296,1741405839316,-500.0,0.00049573,10]
[355625297,1741405839326,-502.41335846,0.00049573,10]
[355625298,1741405839336,-501.3007353,0.00049573,10]
[355625299,1741405839346,-500.0,0.00049573,10]
[355625300,1741405839355,-500.0,0.00049573,10]
[355625301,1741405839365,-501.31911512,0.00049573,10]
[355625302,1741405839376,-500.0,0.00049573,10]
[355625303,1741405839386,-500.0,0.00049573,10]
[355625304,1741405839396,-512.70538615,0.00049573,10]
[355625305,1741405839405,-500.0,0.00049573,10]
[355625306,1741405839415,-500.97595896,0.00049573,10]
[355625307,1741405839425,-500.0,0.00049573,10]
[355625308,1741405839435,-502.93317483,0.00049573,10]
[355625309,1741405839445,-500.0,0.00049573,10]
[355625310,1741405839455,-500.0,0.00049573,10]
[355625311,1741405839465,-500.0,0.00049573,10]
[355625312,1741405839475,-604.79249635,0.00049573,10]
[355625313,1741405839484,-500.0,0.00049573,2]
[355625314,1741405839494,-500.0,0.00049573,10]
[355625315,1741405839504,-500.0,0.00049573,10]
[355625316,1741405839514,-500.0,0.00049573,10]
[355625317,1741405839523,-500.0,0.00049573,10]
[355625318,1741405839533,-500.0,0.00049573,10]
[355625319,1741405839543,-441.40864746,0.00049573,7]
[355625320,1741405839553,-742.0971578,0.00049646,120]
[355625321,1741405839563,-151.0,0.000499,26]
[355625322,1741405839573,-8556.82178846,0.000499,2]
[355625323,1741405839584,-2000.0,0.0004995,4]
[355625324,1741405839594,-501.68145191,0.00049973,10]
[355625325,1741405839604,-501.21363941,0.00049973,10]
[355625326,1741405839616,-500.0,0.00049973,10]
[355625327,1741405839626,-500.0,0.00049973,10]
[355625328,1741405839635,-150.0,0.00049973,10]
[355625329,1741405839645,-500.0,0.00049973,10]
[355625330,1741405839655,-234.06325921,0.00049999,60]
[355625331,1741405839665,-186.0,0.0005,120]
[355625332,1741405839675,-181.0,0.0005,120]
[355625333,1741405839684,-173.0,0.0005,120]
[355625334,1741405839694,-90914.48844325,0.0005,5]
[355625335,1741405839703,-2669078.62662126,0.0005,120]
[355625336,1741405839713,-211.74,0.0005,2]
[355625337,1741405839722,-5708.0,0.0005,7]
[355625338,1741405839731,-502.64383215,0.0005,120]
[355625339,1741405839741,-212.844612,0.0005,120]
[355625340,1741405839750,-151.0,0.0005,90]
[355625341,1741405839760,-176.055301,0.0005,120]
[355625342,1741405839769,-158.093975,0.0005,120]
[355625343,1741405839779,-156.964846,0.0005,120]
[355625344,1741405839788,-151.0,0.0005,120]
[355625345,1741405839798,-159.387747,0.0005,120]
[355625346,1741405839807,-151.0,0.0005,120]
[355625347,1741405839817,-151.0,0.0005,120]
[355625348,1741405839827,-151.0,0.0005,120]
[355625349,1741405839836,-157.403513,0.0005,120]
[355625350,1741405839846,-163.404489,0.0005,120]
[355625351,1741405839856,-742.0971578,0.00050196,120]
[355625352,1741405839866,-170.0,0.00050271,120]
[355625353,1741405839876,-1000.0,0.00050521,10]
[355625354,1741405839886,-742.0971579,0.00050542,120]
[355625355,1741405839898,-150.0,0.0005058,30]
[355625356,1741405839907,-1000.0,0.00051,120]
[355625357,1741405839917,-512.52061289,0.00051068,10]
[355625358,1741405839926,-150.0,0.00051949,30]
[355625359,1741405839938,-350.0,0.00052,120]
[355625360,1741405839948,-744.0,0.00052,120]
[355625361,1741405839958,-1050.85,0.00052054,120]
[355625362,1741405839968,-651.36426997,0.000526,30]
[355625363,1741405839980,-1000.0,0.0005265,120]
[355625364,1741405839991,-600.0,0.000528,2]
[355625365,1741405840000,-150.220041,0.000533,120]
[355625366,1741405840009,-150.0,0.00053319,30]
[355625367,1741405840019,-601.3447221,0.0005335,2]
[355625368,1741405840028,-1439.74,0.000534,30]
[355625369,1741405840037,-1859.44,0.000535,30]
[355625370,1741405840047,-1000.0,0.00054,120]
[355625371,1741405840056,-10000.0,0.00054,120]
[355625372,1741405840066,-2250.0,0.00054,120]
[355625373,1741405840075,-6000.0,0.00054,120]
[355625374,1741405840084,-1000.0,0.00054,120]
[355625375,1741405840094,-744.0,0.00054,120]
[355625376,1741405840104,-6414.16144745,0.00054,120]
[355625377,1741405840114,-10000.0,0.000545,120]
[355625378,1741405840124,-10000.0,0.000545,120]
[355625379,1741405840135,-5702.06093,0.000545,120]
[355625380,1741405840145,-525.62959846,0.00054552,10]
[355625381,1741405840155,-1000.0,0.00054652,10]
[355625382,1741405840164,-512.35723364,0.00054652,10]
[355625383,1741405840173,-1000.0,0.00054652,2]
[355625384,1741405840183,-150.0,0.00054689,30]
[355625385,1741405840192,-150.0,0.00054773,10]
[355625386,1741405840202,-500.0,0.00054794,120]
[355625387,1741405840211,-500.0,0.00054794,120]
[355625388,1741405840221,-500.0,0.00054794,120]
[355625389,1741405840230,-500.0,0.00054794,120]
[355625390,1741405840240,-516.82131452,0.00054794,120]
[355625391,1741405840249,-500.0,0.00054794,120]
[355625392,1741405840259,-500.0,0.00054794,120]
[355625393,1741405840268,-1710.23,0.00054794,120]
[355625394,1741405840278,-1710.23,0.00054794,120]
[355625395,1741405840287,-1710.23,0.00054794,120]
[355625396,1741405840298,-1710.23,0.00054794,120]
[355625397,1741405840308,-1710.23,0.00054794,120]
[355625398,1741405840318,-1710.23,0.00054794,120]
[355625399,1741405840327,-1710.23,0.00054794,120]
[355625400,1741405840337,-1710.23,0.00054794,120]
[355625401,1741405840347,-1710.23,0.00054794,120]
[355625402,1741405840357,-1710.23,0.00054794,120]
[355625403,1741405840367,-1710.23,0.00054794,120]
[355625404,1741405840376,-1710.23,0.00054794,120]
[355625405,1741405840385,-1710.23,0.00054794,120]
[355625406,1741405840395,-1710.23,0.00054794,120]
[355625407,1741405840405,-1710.23,0.00054794,120]
[355625408,1741405840414,-1710.23,0.00054794,120]
[355625409,1741405840423,-1710.23,0.00054794,120]
[355625410,1741405840433,-1710.23,0.00054794,120]
[355625411,1741405840442,-1710.23,0.00054794,120]
[355625412,1741405840451,-1710.23,0.00054794,120]
[355625414,1741405840461,-1710.23,0.00054794,120]
[355625416,1741405840471,-1710.23,0.00054794,120]
[355625418,1741405840480,-1710.23,0.00054794,120]
[355625420,1741405840489,-1710.34832079,0.00054794,120]
[355625422,1741405840498,-500.0,0.00054794,120]
[355625423,1741405840508,-500.0,0.00054794,120]
[355625424,1741405840517,-500.0,0.00054794,120]
[355625425,1741405840527,-500.0,0.00054794,120]
[355625426,1741405840536,-450.83335965,0.00054794,120]
[355625427,1741405840546,-500.0,0.00054794,120]
[355625428,1741405840555,-537.12330089,0.00054794,120]
[355625429,1741405840564,-151.0,0.00054794,30]
[355625430,1741405840573,-522.26920137,0.00054794,120]
[355625431,1741405840583,-500.0,0.00054794,120]
[355625432,1741405840592,-833.51,0.00054794,120]
[355625433,1741405840602,-833.51,0.00054794,120]
[355625434,1741405840613,-833.51,0.00054794,120]
[355625435,1741405840622,-833.51,0.00054794,120]
[355625436,1741405840632,-833.51,0.00054794,120]
[355625437,1741405840641,-833.51,0.00054794,120]
[355625438,1741405840651,-833.51,0.00054794,120]
[355625439,1741405840660,-833.51,0.00054794,120]
[355625440,1741405840670,-833.51,0.00054794,120]
[355625441,1741405840679,-833.51,0.00054794,120]
[355625442,1741405840688,-833.51,0.00054794,120]
[355625443,1741405840698,-833.51,0.00054794,120]
[355625444,1741405840708,-833.51,0.00054794,120]
[355625445,1741405840717,-833.51,0.00054794,120]
[355625446,1741405840727,-833.51,0.00054794,120]
[355625447,1741405840736,-833.51,0.00054794,120]
[355625448,1741405840745,-833.51,0.00054794,120]
[355625449,1741405840754,-500.0,0.00054794,120]
[355625450,1741405840764,-833.51,0.00054794,120]
[355625451,1741405840773,-833.51,0.00054794,120]
[355625452,1741405840782,-833.51,0.00054794,120]
[355625453,1741405840791,-833.51,0.00054794,120]
[355625454,1741405840801,-833.51,0.00054794,120]
[355625455,1741405840810,-833.51,0.00054794,120]
[355625456,1741405840820,-833.69297275,0.00054794,120]
[355625457,1741405840829,-500.0,0.00054794,120]
[355625458,1741405840839,-152.82701115,0.00054794,2]
[355625459,1741405840848,-500.0,0.00054794,2]
[355625460,1741405840857,-833.33,0.00054794,2]
[355625461,1741405840867,-503.3581872,0.00054794,120]
[355625462,1741405840876,-500.0,0.00054794,120]
[355625463,1741405840885,-500.0,0.00054794,120]
[355625464,1741405840896,-833.45,0.00054794,120]
[355625465,1741405840906,-180.14888899,0.00054794,120]
[355625466,1741405840915,-500.0,0.00054794,120]
[355625467,1741405840924,-500.0,0.00054794,120]
[355625468,1741405840935,-500.0,0.00054794,120]
[355625469,1741405840944,-151.0,0.00054794,90]
[355625470,1741405840954,-322.06144267,0.00054794,5]
[355625471,1741405840963,-516.35637304,0.00054794,120]
[355625472,1741405840973,-500.0,0.00054794,120]
[355625473,1741405840984,-500.0,0.00054794,120]
[355625474,1741405840994,-500.0,0.00054794,120]
[355625475,1741405841004,-500.0,0.00054794,120]
[355625476,1741405841014,-500.0,0.00054794,120]
[355625477,1741405841023,-152.93304003,0.00054794,120]
[355625478,1741405841032,-500.0,0.00054794,120]
[355625479,1741405841043,-500.0,0.00054794,120]
[355625480,1741405841052,-3386.38,0.00054794,120]
[355625481,1741405841061,-4182.47,0.00054794,120]
[355625482,1741405841070,-151.0,0.00054794,120]
[355625483,1741405841080,-500.0,0.00054794,120]
[355625484,1741405841089,-666.0,0.00054794,120]
[355625485,1741405841098,-848.57,0.00054794,120]
[355625486,1741405841108,-848.57,0.00054794,120]
[355625487,1741405841117,-848.57,0.00054794,120]
[355625488,1741405841127,-848.57,0.00054794,120]
[355625489,1741405841136,-848.57,0.00054794,120]
[355625490,1741405841146,-151.0,0.00054794,120]
[355625491,1741405841155,-848.57,0.00054794,120]
[355625492,1741405841165,-848.57,0.00054794,120]
[355625493,1741405841175,-848.57,0.00054794,120]
[355625494,1741405841185,-848.57,0.00054794,120]
[355625495,1741405841195,-848.57,0.00054794,120]
[355625496,1741405841205,-848.57,0.00054794,120]
[355625497,1741405841214,-848.57,0.00054794,120]
[355625498,1741405841225,-848.57,0.00054794,120]
[355625499,1741405841234,-848.57,0.00054794,120]
[355625500,1741405841243,-848.57,0.00054794,120]
[355625501,1741405841252,-848.57,0.00054794,120]
[355625502,1741405841262,-848.57,0.00054794,120]
[355625503,1741405841271,-848.57,0.00054794,120]
[355625504,1741405841280,-848.57,0.00054794,120]
[355625505,1741405841289,-848.57,0.00054794,120]
[355625506,1741405841299,-848.57,0.00054794,120]
[355625507,1741405841309,-848.57,0.00054794,120]
[355625508,1741405841319,-848.57,0.00054794,120]
[355625509,1741405841328,-848.74426733,0.00054794,120]
[355625510,1741405841338,-500.0,0.00054794,120]
[355625511,1741405841347,-500.0,0.00054794,120]
[355625512,1741405841357,-500.0,0.00054794,120]
[355625513,1741405841366,-505.27740974,0.00054794,120]
[355625514,1741405841376,-534.02273981,0.00054794,120]
[355625515,1741405841385,-500.0,0.00054794,120]
[355625516,1741405841395,-500.0,0.00054794,120]
[355625517,1741405841404,-505.64473141,0.00054794,120]
[355625518,1741405841414,-500.0,0.00054794,120]
[355625519,1741405841423,-500.0,0.00054794,120]
[355625520,1741405841433,-2567.33,0.00054794,120]
[355625521,1741405841443,-500.0,0.00054794,120]
[355625522,1741405841452,-500.0,0.00054794,120]
[355625523,1741405841463,-500.0,0.00054794,120]
[355625524,1741405841472,-392.57812239,0.00054794,120]
[355625525,1741405841482,-500.0,0.00054794,120]
[355625526,1741405841493,-500.0,0.00054794,120]
[355625527,1741405841502,-1050.85,0.00054794,120]
[355625528,1741405841511,-500.0,0.00054794,120]
[355625529,1741405841521,-500.0,0.00054794,120]
[355625530,1741405841531,-242.36296663,0.00054794,120]
[355625531,1741405841541,-275.15223931,0.00054794,120]
[355625532,1741405841550,-500.0,0.00054794,120]
[355625533,1741405841560,-623.21,0.00054794,120]
[355625534,1741405841570,-500.0,0.00054794,120]
[355625535,1741405841579,-2500.0,0.00054794,120]
[355625536,1741405841589,-640.60389837,0.00054794,120]
[355625537,1741405841599,-187.04318548,0.00054794,120]
[355625538,1741405841608,-751.58,0.00054794,7]
[355625539,1741405841617,-300.89219109,0.00054794,120]
[355625540,1741405841627,-427.88302104,0.00054794,120]
[355625541,1741405841637,-160.0,0.00054794,7]
[355625542,1741405841646,-416.66666667,0.00054794,7]
[355625543,1741405841655,-360.51069541,0.00054794,120]
[355625544,1741405841664,-189.51713978,0.00054794,120]
[355625545,1741405841674,-500.0,0.00054794,120]
[355625546,1741405841684,-154.70584859,0.00054794,120]
[355625547,1741405841694,-622.09568481,0.00054794,30]
[355625548,1741405841704,-500.0,0.00054794,120]
[355625549,1741405841714,-523.84618737,0.00054794,120]
[355625550,1741405841724,-1000.0,0.00054794,7]
[355625551,1741405841735,-500.0,0.00054794,120]
[355625552,1741405841745,-166.02734645,0.00054794,120]
[355625553,1741405841754,-176.88367046,0.00054794,120]
[355625554,1741405841764,-163.72414308,0.00054794,120]
[355625555,1741405841773,-500.0,0.00054794,120]
[355625556,1741405841783,-821.96,0.00054794,120]
[355625557,1741405841793,-500.0,0.00054794,120]
[355625558,1741405841802,-500.0,0.00054794,120]
[355625559,1741405841811,-500.0,0.00054794,120]
[355625560,1741405841821,-500.0,0.00054794,120]
[355625561,1741405841831,-500.0,0.00054794,120]
[355625562,1741405841841,-500.0,0.00054794,120]
[355625563,1741405841851,-500.0,0.00054794,120]
[355625564,1741405841861,-500.0,0.00054794,120]
[355625565,1741405841870,-500.0,0.00054794,120]
[355625566,1741405841879,-500.0,0.00054794,120]
[355625567,1741405841973,-500.0,0.00054794,120]
[355625568,1741405841994,-500.0,0.00054794,120]
[355625569,1741405842003,-500.0,0.00054794,120]
[355625570,1741405842013,-500.0,0.00054794,120]
[355625571,1741405842022,-500.0,0.00054794,120]
[355625572,1741405842032,-500.0,0.00054794,120]
[355625573,1741405842042,-500.0,0.00054794,120]
[355625574,1741405842053,-3189.75,0.00054794,120]
[355625575,1741405842063,-500.0,0.00054794,120]